{"text_format":"1","workbook":"xlsx","n_sheets":2,"sheets":["План доктора філософ ","Заочн.доктора філософ "],"not_rendered":{"charts":0,"images":1,"macros":0,"external_links":0,"defined_names":2,"comments":0,"pivot_tables":0},"unopened":[],"bounds":{"document_bytes":16777216,"sheet_cells":100000,"rows_first":2000,"rows_last":500,"rows_between":2000,"halvings":0,"cell_chars":16384,"cell_head_chars":4096},"cells_cut":0,"cells_raw":0,"read":"whole","date_system":"1900"}

{"sheet":"План доктора філософ ","index":0,"n_rows":77,"n_cols":56,"rows_kept":77,"cut":false,"hidden":false,"merged":[[5,23,5,39],[23,42,23,44],[72,4,72,10],[73,14,73,17],[27,11,27,21],[26,29,26,40],[27,29,27,39],[31,18,31,19],[28,20,29,21],[31,16,31,17],[17,0,18,0],[17,14,17,17],[17,1,17,4],[17,5,17,8],[17,9,17,13],[28,11,29,11],[44,3,44,5],[63,3,63,19],[28,12,29,13],[28,14,29,15],[28,16,29,17],[31,14,31,15],[41,6,41,19],[57,6,57,19],[52,3,52,5],[30,12,30,13],[30,18,30,19],[44,6,44,19],[48,3,48,5],[30,14,30,15],[30,16,30,17],[28,18,29,19],[7,1,7,9],[11,0,11,14],[12,16,12,27],[8,16,8,22],[8,23,8,46],[10,16,10,21],[11,23,11,46],[47,50,47,53],[45,46,45,49],[47,46,47,49],[46,46,46,49],[46,50,46,53],[7,18,7,27],[10,24,10,40],[28,38,29,40],[30,38,30,40],[33,0,33,61],[40,50,40,53],[38,42,38,45],[41,36,41,37],[37,38,40,39],[37,36,40,37],[40,42,40,45],[37,42,37,57],[9,1,9,12],[28,35,29,37],[30,29,30,34],[30,35,30,37],[12,0,12,10],[78,63,79,65],[60,50,60,53],[60,54,60,57],[62,50,62,53],[78,48,78,50],[31,12,31,13],[13,28,13,42],[23,30,23,32],[38,46,38,49],[38,54,38,57],[34,40,40,41],[56,42,56,45],[45,54,45,57],[50,54,50,57],[46,42,46,45],[47,42,47,45],[48,42,48,45],[48,54,48,57],[50,50,50,53],[76,48,76,50],[63,50,63,53],[63,54,63,57],[65,54,65,57],[64,50,64,53],[31,62,31,73],[38,73,38,75],[38,50,38,53],[37,73,37,75],[36,50,36,57],[50,46,50,49],[47,54,47,57],[57,54,57,57],[53,46,53,49],[52,50,52,53],[53,50,53,53],[52,54,52,57],[56,50,56,53],[56,46,56,49],[52,46,52,49],[56,54,56,57],[46,54,46,57],[5,66,5,70],[15,0,15,48],[50,26,50,27],[40,54,40,57],[41,20,41,21],[35,24,35,27],[36,34,36,39],[37,34,40,35],[41,32,41,33],[44,30,44,31],[41,22,41,23],[41,26,41,27],[41,24,41,25],[44,32,44,33],[47,28,47,29],[34,3,40,5],[34,6,40,19],[36,32,40,33],[41,28,41,29],[41,30,41,31],[36,26,40,27],[35,30,40,31],[34,28,40,29],[34,30,34,39],[34,1,54,1],[36,24,40,25],[58,50,58,53],[58,54,58,57],[58,6,58,19],[48,50,48,53],[44,54,44,57],[44,38,44,39],[50,3,50,5],[50,20,50,21],[50,22,50,23],[50,24,50,25],[53,28,53,29],[35,32,35,39],[50,42,50,45],[50,40,50,41],[52,42,52,45],[35,20,40,21],[75,27,75,46],[67,46,67,49],[68,3,68,57],[62,42,62,45],[57,24,57,25],[56,26,56,27],[57,26,57,27],[59,32,59,33],[58,26,58,27],[58,32,58,33],[56,28,56,29],[57,32,57,33],[59,34,59,35],[62,22,62,23],[60,32,60,33],[60,28,60,29],[60,30,60,31],[60,34,60,35],[60,24,60,25],[60,26,60,27],[62,28,62,29],[62,30,62,31],[59,50,59,53],[59,54,59,57],[65,2,81,2],[62,3,62,5],[62,20,62,21],[63,20,63,21],[66,3,66,41],[67,3,67,41],[64,38,64,39],[58,2,63,2],[66,46,66,49],[62,40,62,41],[63,42,63,45],[63,46,63,49],[62,46,62,49],[62,26,62,27],[65,42,65,45],[65,46,65,49],[62,36,62,37],[62,32,62,33],[78,16,78,19],[72,21,72,25],[75,21,75,25],[76,14,76,17],[67,42,67,45],[66,42,66,45],[65,3,65,41],[69,6,69,57],[56,6,56,19],[60,3,60,5],[60,6,60,19],[60,20,60,21],[57,3,57,5],[56,3,56,5],[58,3,58,5],[59,3,59,5],[62,38,62,39],[62,34,62,35],[60,42,60,45],[60,46,60,49],[58,42,58,45],[57,42,57,45],[59,42,59,45],[59,46,59,49],[58,46,58,49],[57,46,57,49],[36,42,36,49],[40,46,40,49],[43,3,43,57],[35,22,40,23],[44,42,44,45],[41,54,41,57],[39,42,39,57],[44,50,44,53],[44,26,44,27],[34,42,35,57],[41,42,41,45],[41,46,41,49],[41,40,41,41],[41,34,41,35],[41,38,41,39],[44,36,44,37],[42,3,42,57],[44,46,44,49],[44,28,44,29],[41,3,41,5],[41,50,41,53],[34,20,34,27],[6,20,6,29],[31,29,31,34],[12,48,12,54],[12,55,12,61],[12,28,12,42],[17,49,17,52],[17,40,17,43],[31,38,31,40],[31,35,31,37],[17,31,17,34],[28,29,29,34],[31,20,31,21],[30,20,30,21],[2,0,2,61],[3,0,3,61],[13,55,13,61],[4,0,4,61],[9,23,9,46],[10,54,11,60],[10,47,10,53],[11,47,11,53],[50,30,50,31],[23,20,23,25],[17,44,17,48],[17,18,17,21],[17,22,17,26],[23,37,23,39],[17,27,17,30],[17,35,17,39],[9,47,9,53],[8,47,8,53],[7,31,7,46],[8,54,9,60],[6,16,6,19],[6,47,6,54],[6,31,6,36],[6,37,6,46],[64,28,64,29],[64,22,64,23],[64,24,64,25],[64,26,64,27],[64,46,64,49],[64,32,64,33],[63,28,63,29],[63,26,63,27],[64,40,64,41],[64,42,64,45],[63,34,63,35],[47,3,47,5],[47,30,47,31],[46,24,46,25],[46,26,46,27],[48,22,48,23],[48,26,48,27],[45,20,45,21],[45,24,45,25],[45,3,45,5],[47,20,47,21],[48,24,48,25],[48,20,48,21],[48,30,48,31],[48,28,48,29],[48,6,48,19],[45,26,45,27],[45,22,45,23],[47,22,47,23],[46,22,46,23],[44,22,44,23],[45,6,45,19],[44,40,44,41],[45,42,45,45],[45,40,45,41],[45,32,45,33],[45,34,45,35],[45,36,45,37],[48,36,48,37],[47,34,47,35],[48,34,48,35],[47,36,47,37],[44,34,44,35],[46,34,46,35],[45,30,45,31],[47,24,47,25],[45,28,45,29],[44,20,44,21],[48,38,48,39],[46,32,46,33],[46,38,46,39],[47,40,47,41],[48,40,48,41],[46,40,46,41],[56,1,82,1],[53,24,53,25],[53,26,53,27],[57,28,57,29],[54,3,54,57],[53,22,53,23],[57,50,57,53],[53,32,53,33],[56,32,56,33],[57,30,57,31],[56,24,56,25],[53,30,53,31],[57,34,57,35],[59,28,59,29],[59,30,59,31],[58,30,58,31],[57,36,57,37],[53,38,53,39],[44,2,54,2],[64,3,64,19],[64,20,64,21],[64,36,64,37],[64,30,64,31],[64,34,64,35],[67,50,67,53],[67,54,67,57],[66,50,66,53],[52,6,52,19],[50,32,50,33],[55,3,55,57],[66,54,66,57],[62,54,62,57],[65,50,65,53],[64,54,64,57],[52,22,52,23],[58,40,58,41],[59,40,59,41],[56,40,56,41],[60,36,60,37],[58,38,58,39],[59,38,59,39],[60,38,60,39],[57,38,57,39],[52,40,52,41],[52,24,52,25],[58,34,58,35],[52,20,52,21],[52,34,52,35],[46,3,46,5],[51,3,51,57],[59,36,59,37],[58,28,58,29],[50,38,50,39],[50,36,50,37],[49,3,49,57],[53,3,53,19],[53,54,53,57],[53,42,53,45],[58,24,58,25],[59,20,59,21],[59,22,59,23],[53,40,53,41],[56,36,56,37],[56,34,56,35],[56,30,56,31],[56,38,56,39],[53,34,53,35],[53,36,53,37],[52,28,52,29],[52,30,52,31],[52,26,52,27],[52,38,52,39],[46,6,46,19],[47,26,47,27],[46,28,46,29],[46,30,46,31],[47,6,47,19],[47,32,47,33],[60,22,60,23],[58,20,58,21],[58,22,58,23],[56,22,56,23],[52,32,52,33],[48,32,48,33],[46,20,46,21],[50,28,50,29],[59,6,59,19],[41,60,41,61],[63,40,63,41],[63,24,63,25],[63,32,63,33],[63,36,63,37],[63,38,63,39],[59,24,59,25],[59,26,59,27],[57,40,57,41],[58,36,58,37],[47,38,47,39],[46,36,46,37],[60,40,60,41],[44,24,44,25],[45,38,45,39],[52,36,52,37],[45,50,45,53],[48,46,48,49],[50,34,50,35],[63,22,63,23],[50,6,50,19],[62,24,62,25],[62,6,62,19],[53,20,53,21],[57,20,57,21],[56,20,56,21],[57,22,57,23],[61,3,61,57],[63,30,63,31]]}
[]
[]
["МІНІСТЕРСТВО ОСВІТИ І НАУКИ УКРАЇНИ"]
[" НАЦІОНАЛЬНИЙ ТЕХНІЧНИЙ УНІВЕРСИТЕТ УКРАЇНИ \"КИЇВСЬКИЙ ПОЛІТЕХНІЧНИЙ ІНСТИТУТ імені  ІГОРЯ  СІКОРСЬКОГО\"                                                                                                "]
["НАВЧАЛЬНИЙ   ПЛАН\n"]
[null,null,null,null,null,null,null,null,null,null,null,null,null,null,null,null,null,null,null,null,null,null,null,"прийому 2017 року"]
[null,null,null,null,null,null,null,null,null,null,null,null,null,null,null,null,"Підготовки",null,null,null,"доктор філософії",null,null,null,null,null,null,null,null,null,null,"з галузі знань",null,null,null,null,null,"05 Соціальні та поведінкові науки",null,null,null,null,null,null,null,null,null,"Факультет (інститут)",null,null,null,null,null,null,null,"Соціології і права"]
[null,"      ЗАТВЕРДЖУЮ ",null,null,null,null,null,null,null,null,null,null,null,null,null,null,null,null,"      (назва освітнього ступеня)",null,null,null,null,null,null,null,null,null,null,null,null,"                                           (шифр і наіменування  галузі знань)"]
[null,null,null,null,null,null,null,null,null,null,null,null,null,null,null,null,"за спеціальністю",null,null,null,null,null,null,"                                                  053 Психологія",null,null,null,null,null,null,null,null,null,null,null,null,null,null,null,null,null,null,null,null,null,null,null,"Обсяг освітньої",null,null,null,null,null,null,"   60 кредитів ECTS"]
[null,"Ректор КПІ  ім.Ігоря Сікорського",null,null,null,null,null,null,null,null,null,null,null,null,null,null,null,null,null,null,null,null,null,"(код і наіменування  спеціальності )",null,null,null,null,null,null,null,null,null,null,null,null,null,null,null,null,null,null,null,null,null,null,null," складової"]
[null,null,null,null,null,null,null,null,null,null,null,null,null,null,null,null,"Форма навчання",null,null,null,null,null,null,null,"                        очна ",null,null,null,null,null,null,null,null,null,null,null,null,null,null,null,null,null,null,null,null,null,null,"Обсяг наукової",null,null,null,null,null,null,"180 кредитів ЕСТS"]
["___________________         М.З.Згуровський",null,null,null,null,null,null,null,null,null,null,null,null,null,null,null,null,null,null,null,null,null,null,null,null,null,null,null,null,null,null,null,null,null,null,null,null,null,null,null,null,null,null,null,null,null,null,"складової"]
["\"___\"_____________  2017 р.",null,null,null,null,null,null,null,null,null,null,null,null,null,null,null,"Випускова   кафедра",null,null,null,null,null,null,null,null,null,null,null,"                Психології і педагогіки",null,null,null,null,null,null,null,null,null,null,null,null,null,null,null,null,null,null,null,"на основі",null,null,null,null,null,null,"МАГІСТР"]
[null,null,null,null,null,null,null,null,null,null,null,null,null,null,null,null,null,null,null,null,null,null,null,null,null,null,null,null,null,null,null,null,null,null,null,null,null,null,null,null,null,null,null,null,null,null,null,null,null,null,null,null,null,null,null,"(зазначається освітній ступінь)"]
[]
["                                                                          І. Графік  навчального  процесу"]
[]
["Курс","Жовтень",null,null,null,"Листопад",null,null,null,"Грудень",null,null,null,null,"Січень",null,null,null,"Лютий",null,null,null,"Березень",null,null,null,null,"Квітень",null,null,null,"Травень",null,null,null,"Червень",null,null,null,null,"Липень",null,null,null,"Серпень",null,null,null,null,"Вересень"]
[null,{"$f":"A19+1","v":1},2,3,4,5,6,7,8,9,10,11,12,13,14,15,16,17,18,19,20,21,22,23,24,25,26,27,28,29,30,31,32,{"$f":"AG19+1","v":33},34,35,36,37,38,39,40,41,42,43,44,45,46,47,48,49,50,51,52]
["I",null,null,null,null,null,null,null,null,null,null,null,null,null,"С","С","К","К",null,"З","З","З",null,null,null,null,null,null,null,null,null,null,null,null,null,null,"C","C","К","К","К","К","К","К","К","К","К","К","К","З","З","З","З"]
["II",null,null,null,null,null,null,null,null,null,null,null,"П","П","С","С","К","К",null,"З","З","З",null,null,null,null,null,null,null,null,null,null,null,null,null,null,"C","C","К","К","К","К","К","К","К","К","К","К","К","З","З","З","З"]
["III",null,null,null,null,null,null,null,null,null,null,null,null,null,null,null,null,null,null,"З","З","З",null,null,null,null,null,null,null,null,null,null,null,null,null,null,null,null,null,null,"К","К","К","К","К","К","К","К","К","З","З","З","З"]
["IV",null,null,null,null,null,null,null,null,null,null,null,null,null,null,null,null,null,null,"З","З","З",null,null,null,null,null,null,null,null,null,null,null,null,null,null,null,null,null,null,"К","К","К","К","К","К","К","К","К","А","А","А","А"]
[null,null,null,null,"  Теоретичне  навчання та наукова робота",null,null,null,null,null,null,null,null,null,null,null,null,null,null,"С","     Екзаменаційна  сесія ",null,null,null,null,null,null,null,null,"К","Канікули",null,null,null,null,null,"З","Звіт",null,null,null,"А","Атестація"]
[]
[]
[null,null,null,null,null,null,null,null,null,null,"    II.ЗВЕДЕНІ ДАНІ ПРО БЮДЖЕТ ЧАСУ, тижні",null,null,null,null,null,null,null,null,null,null,null,null,null,null,null,null,null,null,"                ІІІ.  ПРАКТИКА"]
[null,null,null,null,null,null,null,null,null,null,null,"       ОСВІТНЬОЇ СКЛАДОВОЇ",null,null,null,null,null,null,null,null,null,null,null,null,null,null,null,null,null,"       ОСВІТНЬОЇ СКЛАДОВОЇ"]
[null,null,null,null,null,null,null,null,null,null,null,"Курс","Теоретич\nнавчання",null,"Екзамен.\n сессія",null,"Практика",null,"Кані-\nкули",null,"Разом",null,null,null,null,null,null,null,null,"Назва \nпрактики",null,null,null,null,null,"Семестр",null,null,"Тижні"]
[null,null,null,null,null,null,null,null,null,null,null,null,null,null,null,null,null,null,null,null,null,null,null,null,null,null,null,null,null,null,null,null,null,null,null,null,null,null,null,null,null,null,null,null,null,null,null,null,null,null,null,null,null,48]
[null,null,null,null,null,null,null,null,null,null,null,"I",31,null,4,null,null,null,13,null,48,null,null,null,null,null,null,null,null,"Педагогічна",null,null,null,null,null,"3",null,null,"2"]
[null,null,null,null,null,null,null,null,null,null,null,"II",29,null,4,null,2,null,13,null,47]
[]
["IV. План навчального  процесу  освітньої складової"]
[null,null,null,"Шифр за ОНП",null,null,"НАЗВА НАВЧАЛЬНОЇ\nДИСЦИПЛІНИ\n",null,null,null,null,null,null,null,null,null,null,null,null,null,"Розподіл за семестрами",null,null,null,null,null,null,null,"Кількість кредитів \nЕСТS",null,"Кількість   годин",null,null,null,null,null,null,null,null,null,"Самостійна робота",null,"Розподіл аудиторних годин на тиждень за курсами і семестрами"]
[null,null,null,null,null,null,null,null,null,null,null,null,null,null,null,null,null,null,null,null,"Екзамени",null,"Заліки",null,"Курсові",null,null,null,null,null,"Загальний \nобсяг",null,"Аудиторних"]
[null,null,null,null,null,null,null,null,null,null,null,null,null,null,null,null,null,null,null,null,null,null,null,null,"проекти",null,"роботи",null,null,null,null,null,"Всього",null,"у тому числі",null,null,null,null,null,null,null,"I курс",null,null,null,null,null,null,null,"2 курс "]
[null,null,null,null,null,null,null,null,null,null,null,null,null,null,null,null,null,null,null,null,null,null,null,null,null,null,null,null,null,null,null,null,null,null,"Лекції",null,"Практичні ",null,"Лабораторні",null,null,null,"Семестри"]
[null,null,null,null,null,null,null,null,null,null,null,null,null,null,null,null,null,null,null,null,null,null,null,null,null,null,null,null,null,null,null,null,null,null,null,null,null,null,null,null,null,null,1,null,null,null,2,null,null,null,3,null,null,null,4]
[null,null,null,null,null,null,null,null,null,null,null,null,null,null,null,null,null,null,null,null,null,null,null,null,null,null,null,null,null,null,null,null,null,null,null,null,null,null,null,null,null,null,"Кількість тижнів у семестрі"]
[null,null,null,null,null,null,null,null,null,null,null,null,null,null,null,null,null,null,null,null,null,null,null,null,null,null,null,null,null,null,null,null,null,null,null,null,null,null,null,null,null,null,13,null,null,null,18,null,null,null,11,null,null,null,18]
[null,null,null,1,null,null,2,null,null,null,null,null,null,null,null,null,null,null,null,null,3,null,4,null,5,null,6,null,7,null,8,null,9,null,10,null,11,null,12,null,13,null,14,null,null,null,15,null,null,null,16,null,null,null,17]
[null,null,null,"І. ЦИКЛ ЗАГАЛЬНОЇ ПІДГОТОВКИ"]
[null,null,null,"І.1. Навчальні дисципліни для  здобуття глибинних  знань зі спеціальності         (23 кр)"]
[null,null,null,"1/І",null,null,"Теоретичні і методологічні проблеми психології",null,null,null,null,null,null,null,null,null,null,null,null,null,2,null,null,null,null,null,null,null,6,null,180,null,72,null,36,null,36,null,null,null,108,null,null,null,null,null,4]
[null,null,null,"2/І",null,null,"Психологія соціальних явищ",null,null,null,null,null,null,null,null,null,null,null,null,null,1,null,null,null,null,null,null,null,5,null,150,null,54,null,36,null,18,null,null,null,96,null,4.1500000000000004]
[null,null,null,"3/І",null,null,"Психологія життєвого середовища",null,null,null,null,null,null,null,null,null,null,null,null,null,4,null,null,null,null,null,null,null,4,null,120,null,32,null,16,null,16,null,null,null,88,null,null,null,null,null,null,null,null,null,null,null,null,null,1.8]
[null,null,null,"4/І",null,null,"Психологія професійної діяльності",null,null,null,null,null,null,null,null,null,null,null,null,null,3,null,null,null,null,null,null,null,4,null,120,null,32,null,16,null,16,null,null,null,88,null,null,null,null,null,null,null,null,null,2.9]
[null,null,null,"5/І",null,null,"Психологія наукової і технічної творчості",null,null,null,null,null,null,null,null,null,null,null,null,null,4,null,null,null,null,null,null,null,4,null,120,null,36,null,18,null,18,null,null,null,84,null,null,null,null,null,null,null,null,null,null,null,null,null,2]
[null,null,null,"І.2. Навчальні дисципліни для оволодіння загальнонауковими (філософськими) компетентностями       (6 кр)"]
[null,null,null,"6/І",null,null,"Загально-наукова (філософська) дисципліна (за вибором аспіранта)",null,null,null,null,null,null,null,null,null,null,null,null,null,2,null,1,null,null,null,null,null,6,null,180,null,90,null,36,null,54,null,null,null,90,null,2.8,null,null,null,3]
[null,null,null,"І.3. Навчальні дисципліни для здобуття мовних компетентностей    (4 кр)"]
[null,null,null,"7/І",null,null,"Навчальна  дисципліна мовно-практичної підготовки",null,null,null,null,null,null,null,null,null,null,null,null,null,2,null,1,null,null,null,null,null,4,null,120,null,72,null,null,null,72,null,null,null,48,null,2.8,null,null,null,2]
[null,null,null,"ВСЬОГО ЗА ЦИКЛОМ ЗАГАЛЬНОЇ ПІДГОТОВКИ",null,null,null,null,null,null,null,null,null,null,null,null,null,null,null,null,7,null,2,null,null,null,null,null,33,null,990,null,388,null,158,null,230,null,null,null,602]
[null,null,null,"ІІ. ЦИКЛ ПРОФЕСІЙНОЇ ПІДГОТОВКИ"]
[]
[null,null,null,"1/ІІ",null,null,"Методологія наукових досліджень",null,null,null,null,null,null,null,null,null,null,null,null,null,null,null,2,null,null,null,null,null,4,null,120,null,36,null,18,null,18,null,null,null,84,null,null,null,null,null,2]
[null,null,null,"2/ІІ",null,null," Педагогічна навчальна дисципліна ",null,null,null,null,null,null,null,null,null,null,null,null,null,null,null,2,null,null,null,null,null,2,null,60,null,24,null,18,null,6,null,null,null,36,null,null,null,null,null,1.3]
[null,null,null,"3/ІІ",null,null," Педагогічна практика",null,null,null,null,null,null,null,null,null,null,null,null,null,null,null,"3Д",null,null,null,null,null,3,null,90,null,null,null,null,null,null,null,null,null,90,null,null,null,null,null,null,null,null,null,"х"]
[null,null,null,"4/ІІ",null,null,"Навчальна дисципліна з соціальної психології (за вибором аспіранта)",null,null,null,null,null,null,null,null,null,null,null,null,null,3,null,null,null,null,null,null,null,7,null,210,null,80,null,48,null,32,null,null,null,130,null,null,null,null,null,null,null,null,null,7.3]
[null,null,null,"5/ІІ",null,null,"Навчальна дисципліна з прикладної психології (за вибором аспіранта)",null,null,null,null,null,null,null,null,null,null,null,null,null,4,null,null,null,null,null,null,null,7,null,210,null,72,null,36,null,36,null,null,null,138,null,null,null,null,null,null,null,null,null,null,null,null,null,4]
[null,null,null,"ІІ.2. Навчальні дисципліни для здобуття мовних кометентностей, достатніх для представлення та обговорення  результатів наукової роботи  іноземною мовою в усній та письмовій формі     (4 кр)"]
[null,null,null,"6/ІІ",null,null,"Навчальні дисципліни мовно-професійної підготовки (за вибором аспіранта)",null,null,null,null,null,null,null,null,null,null,null,null,null,null,null,4,null,null,null,null,null,4,null,120,null,36,null,18,null,18,null,null,null,84,null,null,null,null,null,null,null,null,null,null,null,null,null,2]
[null,null,null,"ВСЬОГО ЗА  ЦИКЛОМ ПРОФЕСІЙНОЇ ПІДГОТОВКИ:",null,null,null,null,null,null,null,null,null,null,null,null,null,null,null,null,2,null,4,null,null,null,null,null,27,null,810,null,248,null,138,null,110,null,null,null,562]
[null,null,null,"Загальна кількість ",null,null,null,null,null,null,null,null,null,null,null,null,null,null,null,null,9,null,6,null,null,null,null,null,60,null,1800,null,636,null,296,null,340,null,null,null,1164]
[null,null,null,"Кількість годин на тиждень ",null,null,null,null,null,null,null,null,null,null,null,null,null,null,null,null,null,null,null,null,null,null,null,null,null,null,null,null,null,null,null,null,null,null,null,null,null,null,9.8000000000000007,null,null,null,12.3,null,null,null,10.199999999999999,null,null,null,9.8000000000000007]
[null,null,null,"Кількість екзаменів ",null,null,null,null,null,null,null,null,null,null,null,null,null,null,null,null,null,null,null,null,null,null,null,null,null,null,null,null,null,null,null,null,null,null,null,null,null,null,1,null,null,null,3,null,null,null,2,null,null,null,3]
[null,null,null,"Кількість заліків ",null,null,null,null,null,null,null,null,null,null,null,null,null,null,null,null,null,null,null,null,null,null,null,null,null,null,null,null,null,null,null,null,null,null,null,null,null,null,2,null,null,null,2,null,null,null,1,null,null,null,1]
[]
[null,null,null,null,null,null,"Ухвалено на засіданні Вченої ради  інституту (факультету), протокол № ____ від _______20____    р."]
[]
[]
[null,null,null,null,"Голова  НМК",null,null,null,null,null,null,null,null,null,null,null,null,null,null,null,"/","Волянюк Н.Ю. /"]
[null,null,null,null,null,null,null,null,null,null,null,null,null,null,"(підпис)",null,null,null,null,null,null,null,null,"(П.І.Б.)"]
[]
[null,null,null,null,"Завідувач кафедри  ",null,null,null,null,null,null,null,null,null,null,null,null,null,null,null,"/","Волянюк Н.Ю. /",null,null,null,null,null,"Директор інституту  (декан факультету)",null,null,null,null,null,null,null,null,null,null,null,null,null,null,null,null,null,null,null,null,null,null,null,"/  Мельниченко А.А. /"]
[null,null,null,null,null,null,null,null,null,null,null,null,null,null,"(підпис)",null,null,null,null,null,null,null,null,"(П.І.Б.)",null,null,null,null,null,null,null,null,null,null,null,null,null,null,null,null,null,null,null,null,null,null,null,null,"(підпис)",null,null,null,null,"(П.І.Б.)"]

{"sheet":"Заочн.доктора філософ ","index":1,"n_rows":77,"n_cols":56,"rows_kept":77,"cut":false,"hidden":false,"merged":[[23,35,23,37],[59,24,59,25],[56,20,56,21],[46,20,46,21],[52,20,52,21],[49,36,49,37],[51,20,51,21],[44,34,44,35],[36,36,39,37],[46,42,46,45],[40,40,40,41],[42,3,42,57],[44,38,44,39],[46,36,46,37],[45,36,45,37],[44,36,44,37],[46,40,46,41],[46,6,46,19],[46,32,46,33],[51,32,51,33],[51,34,51,35],[49,34,49,35],[48,3,48,57],[52,3,52,19],[51,6,51,19],[47,3,47,5],[49,6,49,19],[51,3,51,5],[51,24,51,25],[51,26,51,27],[52,30,52,31],[52,28,52,29],[54,1,77,1],[52,24,52,25],[52,26,52,27],[56,28,56,29],[43,2,52,2],[43,20,43,21],[47,24,47,25],[51,28,51,29],[55,20,55,21],[47,20,47,21],[66,3,66,57],[62,36,62,37],[65,50,65,53],[65,54,65,57],[63,38,63,39],[63,3,63,19],[63,34,63,35],[62,32,62,33],[63,32,63,33],[63,46,63,49],[45,40,45,41],[51,30,51,31],[49,40,49,41],[49,32,49,33],[59,40,59,41],[56,42,56,45],[56,54,56,57],[57,50,57,53],[51,46,51,49],[59,54,59,57],[59,42,59,45],[59,46,59,49],[52,46,52,49],[56,50,56,53],[59,50,59,53],[54,3,54,57],[52,50,52,53],[58,42,58,45],[58,46,58,49],[51,38,51,39],[59,38,59,39],[52,40,52,41],[53,3,53,57],[55,54,55,57],[55,50,55,53],[51,40,51,41],[56,34,56,35],[52,34,52,35],[56,2,62,2],[56,24,56,25],[52,22,52,23],[62,22,62,23],[55,3,55,5],[55,6,55,19],[61,22,61,23],[61,24,61,25],[56,22,56,23],[60,3,60,57],[61,40,61,41],[61,34,61,35],[61,54,61,57],[61,26,61,27],[61,38,61,39],[61,36,61,37],[61,42,61,45],[61,50,61,53],[61,46,61,49],[61,28,61,29],[52,54,52,57],[57,54,57,57],[56,40,56,41],[57,40,57,41],[78,48,78,50],[76,48,76,50],[65,3,65,41],[62,54,62,57],[75,27,75,46],[62,46,62,49],[62,50,62,53],[65,46,65,49],[63,36,63,37],[62,40,62,41],[64,54,64,57],[73,14,73,17],[62,42,62,45],[63,40,63,41],[63,42,63,45],[62,28,62,29],[64,3,64,41],[65,42,65,45],[63,26,63,27],[78,16,78,19],[2,0,2,61],[3,0,3,61],[13,55,13,61],[4,0,4,61],[9,23,9,46],[10,54,11,60],[10,47,10,53],[11,47,11,53],[12,55,12,61],[6,47,6,54],[5,23,5,39],[8,54,9,60],[10,24,10,40],[7,18,7,27],[8,16,8,22],[8,23,8,46],[10,16,10,21],[9,47,9,53],[63,30,63,31],[64,50,64,53],[63,28,63,29],[63,22,63,23],[64,46,64,49],[64,42,64,45],[12,48,12,54],[17,49,17,52],[17,44,17,48],[47,28,47,29],[47,38,47,39],[47,36,47,37],[44,32,44,33],[44,30,44,31],[47,30,47,31],[46,34,46,35],[63,24,63,25],[58,6,58,19],[58,3,58,5],[56,3,56,5],[57,3,57,5],[57,6,57,19],[59,3,59,5],[59,6,59,19],[64,2,76,2],[61,3,61,5],[56,6,56,19],[76,14,76,17],[61,6,61,19],[67,6,67,57],[72,21,72,25],[62,3,62,19],[62,20,62,21],[69,3,69,39],[72,4,72,10],[62,26,62,27],[62,38,62,39],[62,34,62,35],[62,30,62,31],[63,50,63,53],[63,54,63,57],[59,36,59,37],[55,22,55,23],[55,24,55,25],[55,26,55,27],[55,30,55,31],[58,28,58,29],[55,28,55,29],[61,30,61,31],[61,32,61,33],[56,26,56,27],[57,34,57,35],[59,26,59,27],[59,28,59,29],[57,36,57,37],[56,32,56,33],[56,30,56,31],[57,32,57,33],[59,32,59,33],[59,30,59,31],[58,30,58,31],[59,22,59,23],[57,22,57,23],[5,66,5,70],[15,0,15,48],[43,28,43,29],[46,38,46,39],[34,32,34,39],[45,32,45,33],[6,20,6,29],[23,20,23,25],[6,16,6,19],[34,30,39,31],[40,36,40,37],[43,30,43,31],[27,29,28,34],[45,34,45,35],[43,22,43,23],[46,22,46,23],[45,22,45,23],[44,22,44,23],[6,31,6,36],[6,37,6,46],[8,47,8,53],[7,31,7,46],[29,29,29,34],[27,35,28,37],[30,62,30,73],[40,50,40,53],[36,42,37,49],[36,50,37,57],[39,50,39,53],[39,46,39,49],[32,0,32,61],[33,1,52,1],[43,46,43,49],[49,26,49,27],[49,22,49,23],[47,22,47,23],[49,28,49,29],[40,28,40,29],[40,30,40,31],[45,28,45,29],[51,54,51,57],[45,42,45,45],[45,50,45,53],[49,38,49,39],[43,34,43,35],[35,34,35,39],[36,34,39,35],[47,34,47,35],[37,73,37,75],[40,60,40,61],[40,42,40,45],[40,54,40,57],[49,54,49,57],[40,24,40,25],[40,26,40,27],[34,24,34,27],[36,73,36,75],[40,46,40,49],[33,42,35,57],[40,38,40,39],[44,54,44,57],[43,50,43,53],[43,54,43,57],[45,38,45,39],[43,42,43,45],[44,46,44,49],[43,38,43,39],[44,40,44,41],[43,40,43,41],[44,42,44,45],[33,20,33,27],[34,20,39,21],[7,1,7,9],[11,0,11,14],[9,1,9,12],[17,40,17,43],[17,27,17,30],[17,35,17,39],[17,31,17,34],[12,16,12,27],[13,28,13,42],[12,28,12,42],[17,1,17,4],[25,29,25,40],[11,23,11,46],[17,5,17,8],[17,9,17,13],[51,22,51,23],[12,0,12,10],[27,38,28,40],[27,18,28,19],[17,0,18,0],[26,29,26,39],[26,11,26,21],[23,30,23,32],[23,40,23,42],[36,38,39,39],[38,42,38,57],[33,40,39,41],[39,42,39,45],[29,20,29,21],[49,42,49,45],[46,46,46,49],[47,42,47,45],[45,54,45,57],[49,46,49,49],[17,14,17,17],[17,18,17,21],[17,22,17,26],[46,50,46,53],[46,54,46,57],[47,46,47,49],[45,46,45,49],[47,50,47,53],[47,54,47,57],[27,20,28,21],[39,54,39,57],[30,14,30,15],[40,22,40,23],[40,20,40,21],[44,6,44,19],[43,6,43,19],[44,20,44,21],[34,22,39,23],[35,24,39,25],[44,50,44,53],[35,26,39,27],[41,3,41,57],[40,32,40,33],[40,34,40,35],[58,54,58,57],[49,50,49,53],[56,46,56,49],[57,46,57,49],[58,36,58,37],[58,38,58,39],[58,40,58,41],[52,42,52,45],[52,36,52,37],[51,42,51,45],[51,50,51,53],[55,42,55,45],[55,46,55,49],[57,42,57,45],[58,50,58,53],[56,36,56,37],[56,38,56,39],[55,38,55,39],[57,38,57,39],[50,3,50,57],[51,36,51,37],[49,24,49,25],[49,30,49,31],[49,20,49,21],[58,32,58,33],[55,32,55,33],[55,34,55,35],[75,21,75,25],[58,20,58,21],[58,22,58,23],[58,24,58,25],[62,24,62,25],[58,26,58,27],[59,34,59,35],[58,34,58,35],[61,20,61,21],[59,20,59,21],[57,20,57,21],[63,20,63,21],[27,12,28,13],[27,14,28,15],[27,11,28,11],[29,12,29,13],[29,14,29,15],[29,16,29,17],[27,16,28,17],[52,32,52,33],[55,40,55,41],[55,36,55,37],[52,38,52,39],[43,36,43,37],[33,28,39,29],[33,30,33,39],[44,28,44,29],[45,26,45,27],[43,26,43,27],[46,26,46,27],[46,24,46,25],[44,24,44,25],[43,32,43,33],[47,32,47,33],[47,40,47,41],[46,28,46,29],[29,38,29,40],[29,35,29,37],[30,38,30,40],[30,18,30,19],[30,29,30,34],[30,35,30,37],[44,26,44,27],[30,12,30,13],[29,18,29,19],[35,32,39,33],[43,24,43,25],[57,24,57,25],[57,26,57,27],[57,28,57,29],[57,30,57,31],[49,3,49,5],[30,20,30,21],[40,6,40,19],[43,3,43,5],[45,20,45,21],[30,16,30,17],[33,6,39,19],[40,3,40,5],[47,6,47,19],[46,3,46,5],[45,3,45,5],[45,6,45,19],[33,3,39,5],[44,3,44,5],[47,26,47,27],[45,30,45,31],[45,24,45,25],[46,30,46,31]]}
[]
[]
["МІНІСТЕРСТВО ОСВІТИ І НАУКИ УКРАЇНИ"]
[" НАЦІОНАЛЬНИЙ ТЕХНІЧНИЙ УНІВЕРСИТЕТ УКРАЇНИ \"КИЇВСЬКИЙ ПОЛІТЕХНІЧНИЙ ІНСТИТУТ імені  ІГОРЯ  СІКОРСЬКОГО\"                                                                                                "]
["НАВЧАЛЬНИЙ   ПЛАН\n"]
[null,null,null,null,null,null,null,null,null,null,null,null,null,null,null,null,null,null,null,null,null,null,null,"прийому 2017 року"]
[null,null,null,null,null,null,null,null,null,null,null,null,null,null,null,null,"Підготовки",null,null,null,"доктор філософії",null,null,null,null,null,null,null,null,null,null,"з галузі знань",null,null,null,null,null,"05 Соціальні та поведінкові науки",null,null,null,null,null,null,null,null,null,"Факультет (інститут)",null,null,null,null,null,null,null,"Соціології і права"]
[null,"      ЗАТВЕРДЖУЮ ",null,null,null,null,null,null,null,null,null,null,null,null,null,null,null,null,"      (назва освітнього ступеня)",null,null,null,null,null,null,null,null,null,null,null,null,"                                           (шифр і наіменування  галузі знань)"]
[null,null,null,null,null,null,null,null,null,null,null,null,null,null,null,null,"за спеціальністю",null,null,null,null,null,null,"                                        053 Психологія",null,null,null,null,null,null,null,null,null,null,null,null,null,null,null,null,null,null,null,null,null,null,null,"Обсяг освітньої",null,null,null,null,null,null,"   60 кредитів ECTS"]
[null,"Ректор КПІ  ім.Ігоря Сікорського",null,null,null,null,null,null,null,null,null,null,null,null,null,null,null,null,null,null,null,null,null,"(код і наіменування  спеціальності )",null,null,null,null,null,null,null,null,null,null,null,null,null,null,null,null,null,null,null,null,null,null,null," складової"]
[null,null,null,null,null,null,null,null,null,null,null,null,null,null,null,null,"Форма навчання",null,null,null,null,null,null,null,"          заочна ",null,null,null,null,null,null,null,null,null,null,null,null,null,null,null,null,null,null,null,null,null,null,"Обсяг наукової",null,null,null,null,null,null,"180 кредитів ЕСТS"]
["___________________         М.З.Згуровський",null,null,null,null,null,null,null,null,null,null,null,null,null,null,null,null,null,null,null,null,null,null,null,null,null,null,null,null,null,null,null,null,null,null,null,null,null,null,null,null,null,null,null,null,null,null,"складової"]
["\"___\"_____________  2017 р.",null,null,null,null,null,null,null,null,null,null,null,null,null,null,null,"Випускова   кафедра",null,null,null,null,null,null,null,null,null,null,null,"       Психології і педагогіки",null,null,null,null,null,null,null,null,null,null,null,null,null,null,null,null,null,null,null,"на основі",null,null,null,null,null,null,"МАГІСТР"]
[null,null,null,null,null,null,null,null,null,null,null,null,null,null,null,null,null,null,null,null,null,null,null,null,null,null,null,null,null,null,null,null,null,null,null,null,null,null,null,null,null,null,null,null,null,null,null,null,null,null,null,null,null,null,null,"(зазначається освітній ступінь)"]
[]
["                                                                          І. Графік  навчального  процесу"]
[]
["Курс","Жовтень",null,null,null,"Листопад",null,null,null,"Грудень",null,null,null,null,"Січень",null,null,null,"Лютий",null,null,null,"Березень",null,null,null,null,"Квітень",null,null,null,"Травень",null,null,null,"Червень",null,null,null,null,"Липень",null,null,null,"Серпень",null,null,null,null,"Вересень"]
[null,{"$f":"A19+1","v":1},2,3,4,5,6,7,8,9,10,11,12,13,14,15,16,17,18,19,20,21,22,23,24,25,26,27,28,29,30,31,32,33,34,35,36,37,38,39,40,41,42,43,44,45,46,47,48,49,50,51,52]
["I","С",null,null,null,null,null,null,null,null,null,null,null,null,null,null,null,null,null,null,"С","С",null,null,null,null,null,null,null,null,null,null,null,null,null,"С","С"]
["II","С",null,null,null,null,null,null,null,null,null,null,"П","П",null,null,null,null,null,null,"С","С",null,null,null,null,null,null,null,null,null,null,null,null,null,"С","С"]
["III",null,null,null,null,null,null,null,null,null,null,null,null,null,null,null,null,null,null,"З","З",null,null,null,null,null,null,null,null,null,null,null,null,null,null,null,null,null,null,null,null,null,null,null,null,null,null,null,null,null,"З","З"]
["IV",null,null,null,null,null,null,null,null,null,null,null,null,null,null,null,null,null,null,"З","З",null,null,null,null,null,null,null,null,null,null,null,null,null,null,null,null,null,null,null,null,null,null,null,null,null,null,null,null,null,"А","А"]
[null,null,null,null,"  Теоретичне  навчання та наукова робота",null,null,null,null,null,null,null,null,null,null,null,null,null,null,"С","     Екзаменаційна  сесія ",null,null,null,null,null,null,null,null,"К","Канікули",null,null,null,"З","Звіт",null,null,null,"А","Атестація"]
[]
[null,null,null,null,null,null,null,null,null,null,"    II.ЗВЕДЕНІ ДАНІ ПРО БЮДЖЕТ ЧАСУ, тижні",null,null,null,null,null,null,null,null,null,null,null,null,null,null,null,null,null,null,"                ІІІ.  ПРАКТИКА"]
[null,null,null,null,null,null,null,null,null,null,null,"       ОСВІТНЬОЇ СКЛАДОВОЇ",null,null,null,null,null,null,null,null,null,null,null,null,null,null,null,null,null,"       ОСВІТНЬОЇ СКЛАДОВОЇ"]
[null,null,null,null,null,null,null,null,null,null,null,"Курс","Теоретич\nнавчання",null,"Екзамен.\n сессія",null,"Практика",null,"Кані-\nкули",null,"Разом",null,null,null,null,null,null,null,null,"Назва \nпрактики",null,null,null,null,null,"Семестр",null,null,"Тижні"]
[]
[null,null,null,null,null,null,null,null,null,null,null,"I",null,null,null,null,null,null,null,null,52,null,null,null,null,null,null,null,null,"Педагогічна",null,null,null,null,null,"3",null,null,"2"]
[null,null,null,null,null,null,null,null,null,null,null,"II",null,null,null,null,null,null,null,null,52]
[]
["IV. План навчального  процесу  освітньої складової"]
[null,null,null,"Шифр за ОНП",null,null,"НАЗВА НАВЧАЛЬНОЇ\nДИСЦИПЛІНИ\n",null,null,null,null,null,null,null,null,null,null,null,null,null,"Розподіл за семестрами",null,null,null,null,null,null,null,"Кількість кредитів \nЕСТS",null,"Кількість   годин",null,null,null,null,null,null,null,null,null,"Самостійна робота",null,"Кількість  аудиторних годин  за  курсами і семестрами"]
[null,null,null,null,null,null,null,null,null,null,null,null,null,null,null,null,null,null,null,null,"Екзамени",null,"Заліки",null,"Курсові",null,null,null,null,null,"Загальний \nобсяг",null,"Аудиторних"]
[null,null,null,null,null,null,null,null,null,null,null,null,null,null,null,null,null,null,null,null,null,null,null,null,"проекти",null,"роботи",null,null,null,null,null,"Всього",null,"у тому числі"]
[null,null,null,null,null,null,null,null,null,null,null,null,null,null,null,null,null,null,null,null,null,null,null,null,null,null,null,null,null,null,null,null,null,null,"Лекції",null,"Практичні ",null,"Лабораторні",null,null,null,"І курс",null,null,null,null,null,null,null,"ІІ курс"]
[]
[null,null,null,null,null,null,null,null,null,null,null,null,null,null,null,null,null,null,null,null,null,null,null,null,null,null,null,null,null,null,null,null,null,null,null,null,null,null,null,null,null,null,"Семестри"]
[null,null,null,null,null,null,null,null,null,null,null,null,null,null,null,null,null,null,null,null,null,null,null,null,null,null,null,null,null,null,null,null,null,null,null,null,null,null,null,null,null,null,1,null,null,null,2,null,null,null,3,null,null,null,4]
[null,null,null,1,null,null,2,null,null,null,null,null,null,null,null,null,null,null,null,null,3,null,4,null,5,null,6,null,7,null,8,null,9,null,10,null,11,null,12,null,13,null,14,null,null,null,15,null,null,null,16,null,null,null,17]
[null,null,null,"І. ЦИКЛ ЗАГАЛЬНОЇ ПІДГОТОВКИ"]
[null,null,null,"І.1. Навчальні дисципліни для  здобуття глибинних  знань зі спеціальності         (23 кр)"]
[null,null,null,"1/І",null,null,"Теоретичні і методологічні проблеми психології",null,null,null,null,null,null,null,null,null,null,null,null,null,2,null,null,null,null,null,null,null,6,null,180,null,16,null,8,null,8,null,null,null,164,null,null,null,null,null,16]
[null,null,null,"2/І",null,null,"Психологія соціальних явищ",null,null,null,null,null,null,null,null,null,null,null,null,null,1,null,null,null,null,null,null,null,5,null,150,null,10,null,6,null,4,null,null,null,140,null,10]
[null,null,null,"3/І",null,null,"Психологія життєвого середовища",null,null,null,null,null,null,null,null,null,null,null,null,null,4,null,null,null,null,null,null,null,4,null,120,null,6,null,4,null,2,null,null,null,114,null,null,null,null,null,null,null,null,null,null,null,null,null,6]
[null,null,null,"4/І",null,null,"Психологія професійної діяльності",null,null,null,null,null,null,null,null,null,null,null,null,null,3,null,null,null,null,null,null,null,4,null,120,null,6,null,4,null,2,null,null,null,114,null,null,null,null,null,null,null,null,null,6]
[null,null,null,"5/І",null,null,"Психологія наукової і технічної творчості",null,null,null,null,null,null,null,null,null,null,null,null,null,4,null,null,null,null,null,null,null,4,null,120,null,8,null,4,null,4,null,null,null,112,null,null,null,null,null,null,null,null,null,null,null,null,null,8]
[null,null,null,"І.2. Навчальні дисципліни для оволодіння загальнонауковими (філософськими) компетентностями       (6 кр)"]
[null,null,null,"6/І",null,null,"Загально-наукова (філософська) дисципліна\n(за вибором аспіранта)",null,null,null,null,null,null,null,null,null,null,null,null,null,2,null,1,null,null,null,null,null,6,null,180,null,14,null,10,null,4,null,null,null,166,null,4,null,null,null,10]
[null,null,null,"І.3. Навчальні дисципліни для здобуття мовних компетентностей    (4 кр)"]
[null,null,null,"7/І",null,null,"Навчальна  дисципліна мовно-практичної підготовки",null,null,null,null,null,null,null,null,null,null,null,null,null,2,null,1,null,null,null,null,null,4,null,120,null,14,null,null,null,14,null,null,null,106,null,8,null,null,null,6]
[null,null,null,"ВСЬОГО ЗА ЦИКЛОМ ЗАГАЛЬНОЇ ПІДГОТОВКИ",null,null,null,null,null,null,null,null,null,null,null,null,null,null,null,null,7,null,2,null,null,null,null,null,33,null,990,null,74,null,36,null,38,null,null,null,916]
[null,null,null,"ІІ. ЦИКЛ ПРОФЕСІЙНОЇ ПІДГОТОВКИ"]
[]
[null,null,null,"1/ІІ",null,null,"Методологія наукових досліджень",null,null,null,null,null,null,null,null,null,null,null,null,null,null,null,2,null,null,null,null,null,4,null,120,null,8,null,4,null,4,null,null,null,112,null,null,null,null,null,8]
[null,null,null,"2/ІІ",null,null," Педагогічна навчальна дисципліна ",null,null,null,null,null,null,null,null,null,null,null,null,null,null,null,2,null,null,null,null,null,2,null,60,null,6,null,4,null,2,null,null,null,54,null,null,null,null,null,6]
[null,null,null,"3/ІІ",null,null," Підагогічна практика",null,null,null,null,null,null,null,null,null,null,null,null,null,null,null,"3Д",null,null,null,null,null,3,null,90,null,null,null,null,null,null,null,null,null,90,null,null,null,null,null,null,null,null,null,"Х"]
[null,null,null,"4ЇІІ",null,null,"Навчальна дисципліна з соціальної психології (за вибором аспіранта)",null,null,null,null,null,null,null,null,null,null,null,null,null,3,null,null,null,null,null,null,null,7,null,210,null,16,null,8,null,8,null,null,null,194,null,null,null,null,null,null,null,null,null,16]
[null,null,null,"5/ІІ",null,null,"Навчальна дисципліна з прикладної психології (за вибором аспіранта)",null,null,null,null,null,null,null,null,null,null,null,null,null,4,null,null,null,null,null,null,null,7,null,210,null,16,null,8,null,8,null,null,null,194,null,null,null,null,null,null,null,null,null,null,null,null,null,16]
[null,null,null,"ІІ.2. Навчальні дисципліни для здобуття мовних кометентностей, достатніх для представлення та обговорення  результатів наукової роботи  іноземною мовою в усній та письмовій формі     (4 кр)"]
[null,null,null,"6/ІІ",null,null,"Навчальні дисципліни мовно-професійної підготовки (за вибором аспіранта)",null,null,null,null,null,null,null,null,null,null,null,null,null,null,null,4,null,null,null,null,null,4,null,120,null,8,null,4,null,4,null,null,null,112,null,null,null,null,null,null,null,null,null,null,null,null,null,8]
[null,null,null,"ВСЬОГО ЗА  ЦИКЛОМ ПРОФЕСІЙНОЇ ПІДГОТОВКИ:",null,null,null,null,null,null,null,null,null,null,null,null,null,null,null,null,2,null,4,null,null,null,null,null,27,null,810,null,54,null,28,null,26,null,null,null,756]
[null,null,null,"Загальна кількість ",null,null,null,null,null,null,null,null,null,null,null,null,null,null,null,null,9,null,6,null,null,null,null,null,60,null,1800,null,128,null,64,null,64,null,null,null,1672]
[null,null,null,"Кількість екзаменів ",null,null,null,null,null,null,null,null,null,null,null,null,null,null,null,null,null,null,null,null,null,null,null,null,null,null,null,null,null,null,null,null,null,null,null,null,null,null,1,null,null,null,3,null,null,null,2,null,null,null,3]
[null,null,null,"Кількість заліків ",null,null,null,null,null,null,null,null,null,null,null,null,null,null,null,null,null,null,null,null,null,null,null,null,null,null,null,null,null,null,null,null,null,null,null,null,null,null,2,null,null,null,2,null,null,null,1,null,null,null,1]
[]
[null,null,null,null,null,null,"Ухвалено на засіданні Вченої ради  інституту (факультету), протокол № ____ від _______20____    р."]
[]
[null,null,null,"Аспірантам, які навчаються без відриву від виробництва, надається додатково оплачувана відпустка протягом 30 календарних днів на навчальний рік."]
[]
[]
[null,null,null,null,"Голова  НМК",null,null,null,null,null,null,null,null,null,null,null,null,null,null,null,"/","Волянюк Н.Ю. /"]
[null,null,null,null,null,null,null,null,null,null,null,null,null,null,"(підпис)",null,null,null,null,null,null,null,null,"(П.І.Б.)"]
[]
[null,null,null,null,"Завідувач кафедри  ",null,null,null,null,null,null,null,null,null,null,null,null,null,null,null,"/","Волянюк Н.Ю. /",null,null,null,null,null,"Директор інституту  (декан факультету)",null,null,null,null,null,null,null,null,null,null,null,null,null,null,null,null,null,null,null,null,null,null,null,"/","  Мельниченко А.А. /"]
[null,null,null,null,null,null,null,null,null,null,null,null,null,null,"(підпис)",null,null,null,null,null,null,null,null,"(П.І.Б.)",null,null,null,null,null,null,null,null,null,null,null,null,null,null,null,null,null,null,null,null,null,null,null,null,"(підпис)",null,null,null,null,"(П.І.Б.)"]